{"text_format":"1","workbook":"xlsx","n_sheets":2,"sheets":["sheet1","sheet2"],"not_rendered":{"charts":1,"images":0,"macros":1,"external_links":2,"defined_names":89,"comments":0,"pivot_tables":1},"unopened":[],"bounds":{"document_bytes":16777216,"sheet_cells":100000,"rows_first":2000,"rows_last":500,"rows_between":2000,"halvings":0,"cell_chars":16384,"cell_head_chars":4096},"cells_cut":0,"cells_raw":0,"read":"whole","date_system":"1900"}

{"sheet":"sheet1","index":0,"n_rows":40,"n_cols":12,"rows_kept":40,"cut":false,"hidden":false,"merged":[[5,0,5,11],[0,0,0,11],[1,0,1,11],[2,0,2,2],[2,8,2,11],[3,0,3,3],[7,7,7,8],[7,9,7,10],[7,1,7,2],[7,3,7,4],[7,5,7,6]]}
["الجمهورية الجزائرية الديمقراطية الشعبية"]
["وزارة التربية الوطنية"]
["مديرية التربية",null,null,null,null,null,null,null,"السنة الدراسية"]
["ثانوية"]
[]
["تعــداد التلاميــــــــذ"]
[]
[null,"نصف داخلي",null," خارجي",null,"المعيدين منهم",null,"الجدد (غير المعيدين)",null,"المجموع"]
[]
["القسم","ن. ذكور","ن .إناث","خ .ذكور","خ .إناث","م. ذكور","م. إناث","جغم . ذكور","جغم. إناث","مجموع ذكور","مجموع إناث","المجموع"]
["على1",5,0,10,8,0,0,20,8,{"$f":"B11+D11+F11+H11","v":35},{"$f":"I11+G11+E11+C11","v":16},{"$f":"K11+J11","v":51}]
["على2",3,3,10,11,0,0,13,14,{"$f":"B12+D12+F12+H12","v":26},{"$f":"I12+G12+E12+C12","v":28},{"$f":"K12+J12","v":54}]
["على3",4,6,9,9,0,0,13,15,26,30,56]
["على4",0,1,3,10,0,0,3,11,6,22,28]
["على5",4,8,7,17,0,0,11,25,22,50,72]
["على6",8,12,5,11,0,0,13,23,26,46,72]
["على7",5,13,3,12,0,0,8,25,16,50,66]
["على8",3,9,9,12,0,0,12,21,24,42,66]
["على9",0,1,14,15,0,0,14,16,28,32,60]
["على10",12,0,2,16,0,0,2,16,16,32,48]
["على11",null,null,null,null,null,null,null,null,0,0,0]
["على12",null,null,null,null,null,null,null,null,0,0,0]
["على13",null,null,null,null,null,null,null,null,0,0,0]
["على14",null,null,null,null,null,null,null,null,0,0,0]
["على15",null,null,null,null,null,null,null,null,0,0,0]
["على16",12,10,null,16,null,null,null,null,12,26,38]
["على17",null,null,null,null,null,null,null,null,0,0,0]
["على18",null,null,null,null,null,null,null,null,0,0,0]
["على19",null,null,null,null,null,null,null,null,0,0,0]
["على20",null,null,null,null,null,null,null,null,{"$f":"B30+D30+F30+H30","v":0},{"$f":"I30+G30+E30+C30","v":0},{"$f":"K30+J30","v":0}]
["على21",null,null,null,null,null,null,null,null,0,0,0]
["على22",14,null,14,null,null,null,null,null,28,0,28]
["على23",null,null,null,null,null,null,null,null,0,0,0]
["على24",null,null,null,null,null,null,null,null,0,0,0]
["على25",null,null,null,null,null,null,null,null,0,0,0]
["على26",null,null,null,null,null,null,null,null,0,0,0]
["على27",null,null,null,null,null,null,null,null,0,0,0]
["على28",null,null,null,null,null,null,null,null,0,0,0]
["على29",null,null,null,null,null,null,null,null,0,0,0]
["على30",null,null,null,null,null,null,null,null,0,0,0]

{"sheet":"sheet2","index":1,"n_rows":5,"n_cols":5,"rows_kept":5,"cut":false,"hidden":false,"merged":[]}
[]
[]
[null,null,null,"Values"]
[null,null,"تسميات الصفوف","   مجموع ذكور"," مجموع إناث"]
[null,null,"الإجمالي الكلي"]